fUSD/lending_fUSD_20251214
["ID","MTS","AMOUNT","RATE_DAILY","PERIOD"]
[398474251,1765713041795,-740535.61592092,0.00018,2]
[398474252,1765713041804,-55134.11723717,0.00018,2]
[398474253,1765713041814,-419079.16675522,0.00018,2]
[398474254,1765713041860,-20368.6685517,0.00018,2]
[398474255,1765713041871,-2291.55086264,0.00018,2]
[398474256,1765713041882,-302.22606618,0.00018,2]
[398474257,1765713042041,-5284.90033072,0.000172,2]
[398474258,1765713042051,-8741.60200557,0.00018,2]
[398474259,1765713042063,-267.990723,0.00018,2]
[398474260,1765713042081,-1557.38467929,0.00018,2]
[398474261,1765713042092,-1284.31028019,0.00018,2]
[398474262,1765713042103,-1528.59713389,0.00018,2]
[398474269,1765713042865,-445.68,0.00016921,2]
[398474272,1765713042877,-117.32,0.00016921,2]
[398474274,1765713042886,-12424.63024179,0.00018,2]
[398474292,1765713043294,-1182.47375131,0.00018,2]
[398474294,1765713043349,-2227.52399531,0.00018,2]
[398474365,1765713045355,-2209.00168675,0.00017433,2]
[398474366,1765713045408,-650.29981515,0.00017433,2]
[398474367,1765713045464,-2425.59882882,0.00017433,2]
[398474368,1765713045476,-1478.40117112,0.00018,2]
[398474369,1765713045571,-1780.0,0.00018,2]
[398474370,1765713045732,-32406.097811,0.00018,2]
[398474371,1765713045745,-431.98000063,0.00018,2]
[398474375,1765713096673,1194.305,0.00015581,2]
[398474377,1765713382749,1500.0,0.00021778,30]
[398474378,1765713426724,1500.0,0.00021778,30]
[398474379,1765713436654,1462.55,0.00015157,2]
[398474385,1765713487753,-245.82559621,0.00015797,2]
[398474386,1765713491292,-155.0126836,0.00015797,2]
[398474387,1765713492915,-177.13657127,0.00015797,2]
[398474388,1765713497833,-180.65262753,0.00015797,2]
[398474389,1765713500578,-383.15969786,0.00015797,2]
[398474391,1765713551569,1878.03728103,0.00015322,2]
[398474392,1765713551590,2847.44271897,0.00015322,2]
[398474399,1765713607674,-274.18489119,0.00015784,2]
[398474411,1765713722498,2751.0,0.00015232,2]
[398474412,1765713741521,-44.15037342,0.00015784,2]
[398474413,1765713741544,-250.0,0.00015791,2]
[398474414,1765713741564,-107.56882365,0.00015795,2]
[398474421,1765713800761,155.78,0.00012507,2]
[398474422,1765713837667,4245.78728103,0.00015699,2]
[398474423,1765713837689,1604.45071897,0.00015699,2]
[398474427,1765713890027,154.85,0.00015546,2]
[398474433,1765714070575,8240.70928103,0.00015699,2]
[398474434,1765714070599,10000.01,0.00015699,2]
[398474435,1765714070622,10000.01,0.00015699,2]
[398474436,1765714070645,10000.01,0.00015699,2]
[398474437,1765714070667,10000.01,0.00015699,2]
[398474438,1765714070690,10000.01,0.00015699,2]
[398474439,1765714070712,10000.01,0.00015699,2]
[398474440,1765714070735,10000.01,0.00015699,2]
[398474441,1765714070758,10000.01,0.00015699,2]
[398474442,1765714070780,10000.01,0.00015699,2]
[398474443,1765714086034,-590.0,0.00015698,2]
[398474444,1765714086064,-250.0,0.00015698,2]
[398474445,1765714096504,1331.67557761,0.00015696,2]
[398474446,1765714102747,-197.23732865,0.00015699,2]
[398474447,1765714104396,-162.58563528,0.00015699,2]
[398474448,1765714107021,-228.15260108,0.00015699,2]
[398474453,1765714109688,-377.63423123,0.00015699,2]
[398474459,1765714114985,500.0,0.00015698,2]
[398474460,1765714115033,424.50381912,0.00015698,2]
[398474461,1765714115063,349.08946741,0.00015698,2]
[398474462,1765714115100,233.82197397,0.00015698,2]
[398474463,1765714115922,-300.0,0.00015699,2]
[398474464,1765714117354,500.0,0.00015698,2]
[398474465,1765714117385,226.0279427,0.00015698,2]
[398474466,1765714117434,500.0,0.00015698,2]
[398474467,1765714117468,500.0,0.00015698,2]
[398474468,1765714117513,500.0,0.00015698,2]
[398474469,1765714117558,500.0,0.00015698,2]
[398474470,1765714117619,500.0,0.00015698,2]
[398474471,1765714117671,314.1360352,0.00015698,2]
[398474472,1765714117716,500.0,0.00015698,2]
[398474473,1765714117766,500.0,0.00015698,2]
[398474474,1765714117828,500.0,0.00015698,2]
[398474475,1765714117867,440.75518399,0.00015698,2]
[398474476,1765714117893,59.24481601,0.00015698,2]
[398474477,1765714117937,500.0,0.00015698,2]
[398474478,1765714117978,500.0,0.00015698,2]
[398474479,1765714118020,500.0,0.00015698,2]
[398474480,1765714118061,500.0,0.00015698,2]
[398474481,1765714118110,500.0,0.00015698,2]
[398474482,1765714118172,500.0,0.00015698,2]
[398474483,1765714118215,500.0,0.00015698,2]
[398474484,1765714118260,500.0,0.00015698,2]
[398474485,1765714118304,500.0,0.00015698,2]
[398474486,1765714118350,500.0,0.00015698,2]
[398474487,1765714118391,500.0,0.00015698,2]
[398474488,1765714118455,500.0,0.00015698,2]
[398474489,1765714118504,500.0,0.00015698,2]
[398474490,1765714118540,500.0,0.00015698,2]
[398474491,1765714118668,500.0,0.00015698,2]
[398474492,1765714118753,500.0,0.00015698,2]
[398474495,1765714118788,500.0,0.00015698,2]
[398474496,1765714118833,500.0,0.00015698,2]
[398474497,1765714118872,500.0,0.00015698,2]
[398474498,1765714118932,440.76518399,0.00015698,2]
[398474499,1765714118956,59.23481601,0.00015698,2]
[398474500,1765714119593,-301.45411047,0.00015699,2]
[398474501,1765714120781,-500.71047841,0.00015699,2]
[398474502,1765714122796,-250.0,0.00015699,2]
[398474503,1765714124230,-235.99132035,0.00015699,2]
[398474504,1765714128042,-459.6043359,0.00015699,2]
[398474505,1765714131165,-275.90767745,0.00015699,2]
[398474506,1765714146625,-278.80710615,0.00015699,2]
[398474507,1765714148826,-300.2577062,0.00015699,2]
[398474508,1765714154504,-300.0,0.00015699,2]
[398474509,1765714156033,-300.0,0.00015699,2]
[398474510,1765714157588,-300.0,0.00015699,2]
[398474511,1765714159217,-610.47975063,0.00015699,2]
[398474512,1765714161360,-166.77974587,0.00015699,2]
[398474513,1765714166370,-164.83,0.00015699,2]
[398474514,1765714168637,-232.17786394,0.00015699,2]
[398474515,1765714170938,9656.10817374,0.00015599,2]
[398474516,1765714171324,-900.67512233,0.00015699,2]
[398474517,1765714172851,-252.17539739,0.00015699,2]
[398474518,1765714175034,-332.81231216,0.00015699,2]
[398474523,1765714180708,-200.0,0.00015699,2]
[398474524,1765714185373,-203.41976555,0.00015699,2]
[398474525,1765714188160,-166.66,0.00015699,2]
[398474526,1765714188191,343.90182626,0.00015684,2]
[398474527,1765714188213,556.77329607,0.00015684,2]
[398474528,1765714191263,-170.11079776,0.00015699,2]
[398474529,1765714192751,-200.00513668,0.00015699,2]
[398474530,1765714195495,-221.33988607,0.00015699,2]
[398474531,1765714197712,-246.90537269,0.00015699,2]
[398474532,1765714199364,-532.4869348,0.00015699,2]
[398474533,1765714201224,1200.0,0.00015698,2]
[398474534,1765714203779,300.0,0.00015698,2]
[398474535,1765714204107,-236.85212216,0.00015699,2]
[398474536,1765714204295,281.0,0.00015698,2]
[398474538,1765714206341,-244.71974984,0.00015699,2]
[398474539,1765714209255,-169.26868773,0.00015699,2]
[398474540,1765714211561,-165.24,0.00015699,2]
[398474541,1765714213681,-226.11441705,0.00015699,2]
[398474542,1765714215996,6076.3,0.00015689,2]
[398474543,1765714216035,1585.93670393,0.00015689,2]
[398474544,1765714216057,4490.36329607,0.00015689,2]
[398474545,1765714216360,-283.01686947,0.00015699,2]
[398474546,1765714219467,-156.36002575,0.00015699,2]
[398474547,1765714224072,300.0,0.00015644,3]
[398474552,1765714231588,-1887.62,0.00015699,2]
[398474553,1765714231600,-1295.49444711,0.00015699,2]
[398474554,1765714231611,-11814.75426771,0.00015699,2]
[398474555,1765714231623,-1254.41808677,0.00015699,2]
[398474566,1765714234384,500.0,0.00015616,3]
[398474567,1765714237578,-634656.14142834,0.00015699,2]
[398474568,1765714237589,-20007.0283,0.00015699,2]
[398474569,1765714237600,-186.87974473,0.00015699,2]
[398474570,1765714237611,-292.43117635,0.00015748,2]
[398474571,1765714237621,-31451.6034,0.00015799,2]
[398474572,1765714237631,-9656.10817372,0.00015855,2]
[398474573,1765714237642,-500.0,0.00015889,2]
[398474574,1765714237653,-500.0,0.00015889,2]
[398474575,1765714237663,-500.0,0.00015889,2]
[398474576,1765714237673,-500.0,0.00015889,2]
[398474577,1765714237682,-500.0,0.00015889,2]
[398474578,1765714237691,-500.0,0.00015889,2]
[398474579,1765714237701,-500.0,0.00015889,2]
[398474580,1765714237710,-500.0,0.00015889,2]
[398474581,1765714237719,-500.0,0.00015889,2]
[398474582,1765714237734,-500.0,0.00015889,2]
[398474583,1765714237743,-500.0,0.00015889,2]
[398474584,1765714237753,-1020.75945298,0.00015898,5]
[398474585,1765714237763,-1020.75945297,0.00015898,5]
[398474586,1765714237772,-508.9156175,0.00015898,2]
[398474587,1765714237782,-546.23,0.00015898,2]
[398474588,1765714237791,-504.03,0.00015898,2]
[398474589,1765714237800,-500.0,0.00015898,2]
[398474590,1765714237810,-500.0,0.00015898,2]
[398474591,1765714237819,-193.64493313,0.00015898,2]
[398474592,1765714237829,-516.06363268,0.00015898,2]
[398474593,1765714237838,-5525.0,0.000159,3]
[398474594,1765714237849,-150.0,0.00015953,2]
[398474595,1765714237858,-150.0,0.00015953,2]
[398474596,1765714237868,-150.0,0.00015953,2]
[398474597,1765714237877,-150.0,0.00015953,2]
[398474598,1765714237887,-150.0,0.00015953,2]
[398474599,1765714237896,-150.0,0.00015953,2]
[398474600,1765714237907,-8207.84518228,0.00015961,2]
[398474601,1765714237918,-500.0,0.00015999,2]
[398474602,1765714237928,-500.0,0.00015999,2]
[398474603,1765714237938,-521.36050563,0.00015999,2]
[398474604,1765714237948,-500.0,0.00015999,2]
[398474605,1765714237957,-500.0,0.00015999,2]
[398474606,1765714237967,-500.0,0.00015999,2]
[398474607,1765714237977,-500.0,0.00015999,2]
[398474608,1765714237987,-500.0,0.00015999,2]
[398474609,1765714237996,-500.0,0.00015999,2]
[398474610,1765714238006,-500.0,0.00015999,2]
[398474611,1765714238016,-1331.67557757,0.00016011,2]
[398474612,1765714238025,-5525.0,0.000161,5]
[398474613,1765714238035,-500.0,0.00016102,2]
[398474614,1765714238045,-166.38,0.00016102,2]
[398474615,1765714238054,-9656.10817372,0.0001611,2]
[398474616,1765714238064,-202.78286562,0.00016232,2]
[398474617,1765714238073,-204.41629939,0.00016232,2]
[398474618,1765714238083,-150.0,0.00016308,2]
[398474619,1765714238092,-1331.67557757,0.00016326,2]
[398474620,1765714238101,-9656.10817372,0.00016366,2]
[398474621,1765714238110,-150.0,0.00016397,2]
[398474622,1765714238120,-300.0,0.00016424,2]
[398474623,1765714238130,-1000.0,0.00016424,2]
[398474624,1765714238140,-1000.0,0.00016424,2]
[398474625,1765714238150,-1111.0,0.00016424,2]
[398474626,1765714238159,-160.0,0.00016424,2]
[398474627,1765714238169,-1000.0,0.00016424,2]
[398474628,1765714238178,-1000.0,0.00016424,2]
[398474629,1765714238188,-1000.0,0.00016424,2]
[398474630,1765714238198,-1000.0,0.00016424,2]
[398474631,1765714238207,-1000.0,0.00016424,2]
[398474632,1765714238217,-1000.0,0.00016424,2]
[398474633,1765714238226,-326.0,0.00016424,2]
[398474634,1765714238236,-1000.0,0.00016424,2]
[398474635,1765714238246,-1000.0,0.00016424,2]
[398474636,1765714238256,-250.0,0.00016424,2]
[398474637,1765714238266,-1000.0,0.00016424,2]
[398474638,1765714238275,-578.20924308,0.00016424,2]
[398474639,1765714238285,-250.0,0.00016424,2]
[398474640,1765714238294,-250.0,0.00016424,2]
[398474641,1765714238304,-250.0,0.00016424,2]
[398474642,1765714238314,-250.0,0.00016424,2]
[398474643,1765714238324,-250.0,0.00016424,2]
[398474644,1765714238334,-151.0,0.00016424,2]
[398474645,1765714238343,-250.0,0.00016424,2]
[398474646,1765714238354,-250.0,0.00016424,2]
[398474647,1765714238363,-252.63118366,0.00016424,2]
[398474648,1765714238373,-209.40437684,0.00016424,2]
[398474649,1765714238383,-574.12855637,0.00016424,2]
[398474650,1765714238393,-1000.0,0.00016424,2]
[398474651,1765714238403,-1093.04860208,0.00016424,2]
[398474652,1765714238412,-500.0,0.00016424,2]
[398474653,1765714238422,-500.0,0.00016424,2]
[398474654,1765714238431,-500.0,0.00016424,2]
[398474655,1765714238441,-500.0,0.00016424,2]
[398474656,1765714238451,-519.01709768,0.00016424,2]
[398474657,1765714238460,-500.0,0.00016424,2]
[398474658,1765714238470,-500.0,0.00016424,2]
[398474659,1765714238483,-500.0,0.00016424,2]
[398474660,1765714238493,-151.0,0.00016424,2]
[398474661,1765714238502,-500.0,0.00016424,2]
[398474662,1765714238511,-500.0,0.00016424,2]
[398474663,1765714238522,-500.0,0.00016424,2]
[398474664,1765714238531,-500.0,0.00016424,2]
[398474665,1765714238541,-513.71195864,0.00016424,2]
[398474666,1765714238550,-151.0,0.00016424,2]
[398474667,1765714238559,-222.09202813,0.00016424,2]
[398474668,1765714238568,-250.0,0.00016424,2]
[398474669,1765714238577,-250.0,0.00016424,2]
[398474670,1765714238587,-250.0,0.00016424,2]
[398474671,1765714238596,-250.0,0.00016424,2]
[398474672,1765714238605,-250.0,0.00016424,2]
[398474673,1765714238615,-500.0,0.00016424,2]
[398474674,1765714238624,-250.0,0.00016424,2]
[398474675,1765714238633,-500.0,0.00016424,2]
[398474676,1765714238642,-250.0,0.00016424,2]
[398474677,1765714238651,-500.0,0.00016424,2]
[398474678,1765714238660,-250.0,0.00016424,2]
[398474679,1765714238669,-250.0,0.00016424,2]
[398474680,1765714238679,-250.0,0.00016424,2]
[398474681,1765714238688,-250.0,0.00016424,2]
[398474682,1765714238698,-220.0,0.00016424,2]
[398474683,1765714238707,-220.0,0.00016424,2]
[398474684,1765714238717,-240.72552052,0.00016424,2]
[398474685,1765714238727,-200.0,0.00016424,2]
[398474686,1765714238737,-207.4,0.00016424,2]
[398474687,1765714238747,-215.0738,0.00016424,2]
[398474688,1765714238757,-308.80660451,0.00016424,2]
[398474689,1765714238766,-372.83,0.00016424,2]
[398474690,1765714238776,-641.75688445,0.00016436,2]
[398474691,1765714238785,-500.0,0.00016438,2]
[398474692,1765714238795,-500.0,0.00016438,2]
[398474693,1765714238805,-500.0,0.00016438,2]
[398474694,1765714238815,-500.0,0.00016438,2]
[398474695,1765714238825,-500.0,0.00016438,2]
[398474696,1765714238834,-162.31688408,0.00016438,2]
[398474697,1765714238844,-500.0,0.00016438,2]
[398474698,1765714238853,-500.0,0.00016438,2]
[398474699,1765714238863,-500.0,0.00016438,2]
[398474700,1765714238873,-500.0,0.00016438,2]
[398474701,1765714238883,-500.0,0.00016438,2]
[398474702,1765714238893,-500.0,0.00016438,2]
[398474703,1765714238902,-500.0,0.00016438,2]
[398474704,1765714238912,-500.0,0.00016438,2]
[398474705,1765714238922,-500.0,0.00016438,2]
[398474706,1765714238933,-500.0,0.00016438,2]
[398474707,1765714238944,-500.0,0.00016438,2]
[398474708,1765714238955,-500.0,0.00016438,2]
[398474709,1765714238965,-500.0,0.00016438,2]
[398474710,1765714238976,-500.0,0.00016438,2]
[398474711,1765714238986,-500.0,0.00016438,2]
[398474712,1765714238995,-500.0,0.00016438,2]
[398474713,1765714239006,-600.0,0.00016438,2]
[398474714,1765714239015,-7466.41,0.00016438,2]
[398474715,1765714239025,-150.0,0.00016451,2]
[398474716,1765714239036,-150.0,0.00016451,2]
[398474717,1765714239046,-150.0,0.00016451,2]
[398474718,1765714239057,-7073.0,0.00016451,2]
[398474719,1765714239066,-500.0,0.00016451,2]
[398474720,1765714239076,-1111.0,0.00016479,2]
[398474721,1765714239085,-1111.0,0.00016534,2]
[398474722,1765714239095,-150.0,0.00016544,2]
[398474723,1765714239104,-150.0,0.00016588,2]
[398474724,1765714239113,-200.0,0.00016588,2]
[398474725,1765714239123,-150.0,0.00016588,2]
[398474726,1765714239133,-7073.0,0.00016588,2]
[398474727,1765714239143,-500.0,0.00016588,2]
[398474728,1765714239153,-1111.0,0.00016589,2]
[398474729,1765714239162,-229.0,0.00016612,2]
[398474730,1765714239172,-9656.10817372,0.00016622,2]
[398474731,1765714239181,-1331.67557757,0.00016641,2]
[398474732,1765714239190,-1111.0,0.00016644,2]
[398474733,1765714239199,-154.85,0.00016656,2]
[398474734,1765714239209,-150.0,0.00016662,2]
[398474735,1765714239219,-372.83,0.00016698,2]
[398474736,1765714239228,-1111.0,0.00016699,2]
[398474737,1765714239237,-150.0,0.00016725,2]
[398474738,1765714239247,-200.0,0.00016725,2]
[398474739,1765714239256,-7073.0,0.00016725,2]
[398474740,1765714239266,-500.0,0.00016725,2]
[398474741,1765714239276,-1442.0,0.0001674,2]
[398474742,1765714239286,-1111.0,0.00016754,2]
[398474743,1765714239295,-166.38,0.00016767,2]
[398474744,1765714239304,-559.91637451,0.00016773,2]
[398474745,1765714239313,-500.0,0.00016773,2]
[398474746,1765714239323,-500.0,0.00016773,2]
[398474747,1765714239332,-500.0,0.00016773,2]
[398474748,1765714239342,-500.0,0.00016773,2]
[398474749,1765714239352,-622.20369641,0.00016773,2]
[398474750,1765714239361,-500.0,0.00016773,2]
[398474751,1765714239370,-500.64872299,0.00016773,2]
[398474752,1765714239379,-500.48874049,0.00016773,2]
[398474753,1765714239388,-500.0,0.00016773,2]
[398474754,1765714239398,-500.0,0.00016773,2]
[398474755,1765714239407,-500.0,0.00016773,2]
[398474757,1765714239417,-500.0,0.00016773,2]
[398474758,1765714239427,-500.42448479,0.00016773,2]
[398474759,1765714239439,-201.95861982,0.00016773,2]
[398474760,1765714239448,-177.08742961,0.00016773,2]
[398474761,1765714239457,-500.0,0.00016773,2]
[398474762,1765714239467,-500.87932998,0.00016773,2]
[398474763,1765714239482,-500.0,0.00016773,2]
[398474764,1765714239491,-501.65541213,0.00016773,2]
[398474765,1765714239500,-500.0,0.00016773,2]
[398474766,1765714239509,-500.0,0.00016773,2]
[398474767,1765714239520,-299.7668433,0.00016773,2]
[398474768,1765714239530,-500.0,0.00016773,2]
[398474769,1765714239540,-500.0,0.00016773,2]
[398474771,1765714239549,-198.3,0.00016814,2]
[398474772,1765714239560,-1607.0,0.00016826,2]
[398474773,1765714239570,-611.0,0.00016826,2]
[398474775,1765714239579,-1324.0,0.00016826,2]
[398474776,1765714239589,-589.0,0.00016826,2]
[398474777,1765714239599,-1261.0,0.00016826,2]
[398474778,1765714239609,-1196.0,0.00016827,2]
[398474779,1765714239619,-911.0,0.00016827,2]
[398474780,1765714239629,-4797.0,0.00016827,2]
[398474781,1765714239639,-2426.0,0.00016827,2]
[398474782,1765714239648,-563.0,0.00016827,2]
[398474783,1765714239658,-150.0,0.0001684,2]
[398474784,1765714239668,-285.47452051,0.00016862,2]
[398474785,1765714239679,-7073.0,0.00016862,2]
[398474786,1765714239687,-500.0,0.00016862,2]
[398474787,1765714239698,-9656.10817372,0.00016877,2]
[398474788,1765714239708,-481.15230225,0.00016901,2]
[398474789,1765714239717,-9999.99,0.00016922,2]
[398474790,1765714239727,-9999.99,0.00016922,2]
[398474791,1765714239738,-999.99,0.00016922,2]
[398474792,1765714239747,-150.99,0.00016922,2]
[398474793,1765714239756,-5355.68,0.00016922,2]
[398474794,1765714239765,-3674.62,0.00016922,2]
[398474795,1765714239774,-6252.35,0.00016922,2]
[398474796,1765714239784,-150.99,0.00016922,2]
[398474797,1765714239792,-2824.56,0.00016922,2]
[398474798,1765714239802,-198.3,0.00016922,2]
[398474799,1765714239811,-150.0,0.00016931,2]
[398474800,1765714239820,-248.243,0.00016931,2]
[398474801,1765714239829,-150.337,0.00016931,2]
[398474802,1765714239839,-150.0,0.00016931,2]
[398474803,1765714239848,-299.154,0.00016931,2]
[398474804,1765714239857,-150.0,0.00016931,2]
[398474805,1765714239866,-3451.0,0.00016931,2]
[398474806,1765714239875,-1331.67557757,0.00016955,2]
[398474807,1765714239884,-151.0,0.00016972,2]
[398474808,1765714239893,-217.15233878,0.00016972,2]
[398474809,1765714239903,-595.37131296,0.00016972,2]
[398474810,1765714239912,-372.83,0.00016972,2]
[398474811,1765714239921,-297.12189153,0.00016973,2]
[398474812,1765714239931,-500.0,0.00016973,2]
[398474813,1765714239940,-500.0,0.00016973,2]
[398474814,1765714239949,-500.0,0.00016986,2]
[398474815,1765714239958,-600.0,0.00016986,2]
[398474816,1765714239967,-7073.0,0.00016999,2]
[398474817,1765714239976,-179.74304733,0.00016999,2]
[398474818,1765714239985,-506.25786618,0.00016999,2]
[398474819,1765714239994,-500.0,0.00016999,2]
[398474820,1765714240003,-1500.0,0.00017,2]
[398474821,1765714240012,-1500.0,0.00017,2]
[398474822,1765714240022,-1500.0,0.00017,2]
[398474823,1765714240032,-1500.0,0.00017,2]
[398474824,1765714240041,-1500.0,0.00017,2]
[398474825,1765714240051,-1500.0,0.00017,2]
[398474826,1765714240060,-1500.0,0.00017,2]
[398474827,1765714240069,-1500.0,0.00017,2]
[398474828,1765714240079,-1500.0,0.00017,2]
[398474829,1765714240088,-1500.0,0.00017,2]
[398474830,1765714240097,-1500.0,0.00017,2]
[398474832,1765714240106,-1500.0,0.00017,2]
[398474834,1765714240115,-1500.0,0.00017,2]
[398474836,1765714240124,-250.0,0.00017,2]
[398474837,1765714240133,-2000.0,0.00017,2]
[398474838,1765714240143,-150.0,0.00017017,2]
[398474839,1765714240152,-198.3,0.0001703,2]
[398474840,1765714240161,-480.71,0.00017123,2]
[398474841,1765714240170,-480.71,0.00017123,2]
[398474842,1765714240179,-480.71,0.00017123,2]
[398474843,1765714240189,-250.0,0.00017129,2]
[398474844,1765714240198,-9656.10817372,0.00017133,2]
[398474845,1765714240207,-150.0,0.00017135,2]
[398474846,1765714240216,-7073.0,0.00017136,2]
[398474847,1765714240225,-198.3,0.00017137,2]
[398474848,1765714240234,-420.0,0.00017168,2]
[398474849,1765714240245,-171.08099914,0.00017221,2]
[398474850,1765714240254,-198.3,0.00017245,2]
[398474851,1765714240264,-372.83,0.00017246,2]
[398474852,1765714240273,-1680.0,0.00017255,2]
[398474853,1765714240282,-500.0,0.0001726,2]
[398474854,1765714240292,-250.0,0.00017268,2]
[398474855,1765714240301,-300.0,0.00017269,2]
[398474856,1765714240312,-300.0,0.00017269,2]
[398474857,1765714240321,-300.0,0.00017269,2]
[398474858,1765714240330,-300.0,0.00017269,2]
[398474859,1765714240339,-439.27836621,0.00017269,2]
[398474860,1765714240349,-250.0,0.00017269,2]
[398474861,1765714240358,-1331.67557757,0.0001727,2]
[398474862,1765714240367,-7073.0,0.00017273,2]
[398474863,1765714240377,-150.0,0.00017283,2]
[398474864,1765714240386,-934.90903881,0.00017321,2]
[398474865,1765714240395,-1005.23733551,0.00017321,2]
[398474866,1765714240405,-503.70828138,0.00017321,2]
[398474867,1765714240414,-1000.0,0.00017321,2]
[398474868,1765714240423,-1002.18808217,0.00017321,2]
[398474869,1765714240432,-1000.0,0.00017321,2]
[398474870,1765714240441,-1000.0,0.00017321,2]
[398474871,1765714240451,-500.0,0.00017321,2]
[398474872,1765714240460,-500.0,0.00017321,2]
[398474873,1765714240470,-1000.0,0.00017321,2]
[398474874,1765714240484,-1000.0,0.00017321,2]
[398474875,1765714240494,-1000.0,0.00017321,2]
[398474876,1765714240505,-173.94344354,0.00017321,2]
[398474877,1765714240514,-150.85899699,0.00017329,2]
[398474878,1765714240525,-198.3,0.00017353,2]
[398474879,1765714240535,-171.08099914,0.00017357,2]
[398474880,1765714240544,-150.0,0.00017372,2]
[398474881,1765714240556,-2500.0,0.00017375,2]
[398474882,1765714240565,-5078.27226394,0.00017375,3]
[398474883,1765714240575,-195.0,0.00017375,2]
[398474884,1765714240585,-481.15230225,0.00017375,3]
[398474885,1765714240595,-9656.10817372,0.00017389,2]
[398474886,1765714240604,-7073.0,0.0001741,2]
[398474887,1765714240614,-1254.02,0.00017428,2]
[398474888,1765714240624,-166.38,0.00017431,2]
[398474889,1765714240634,-198.3,0.00017461,2]
[398474890,1765714240644,-171.08099914,0.00017493,2]
[398474891,1765714240654,-2000.0,0.000175,2]
[398474892,1765714240663,-1000.0,0.000175,2]
[398474893,1765714240672,-153.63486129,0.0001752,2]
[398474894,1765714240682,-225.18697532,0.0001752,2]
[398474895,1765714240692,-617.40005154,0.0001752,2]
[398474896,1765714240701,-372.84370949,0.0001752,2]
[398474897,1765714240710,-1000.0,0.00017521,2]
[398474898,1765714240720,-1000.0,0.00017521,2]
[398474899,1765714240730,-500.0,0.00017534,2]
[398474900,1765714240739,-600.0,0.00017534,2]
[398474901,1765714240748,-7073.0,0.00017547,2]
[398474902,1765714240756,-198.3,0.00017569,2]
[398474903,1765714240765,-1331.67557757,0.00017585,2]
[398474904,1765714240775,-269.0,0.00017616,2]
[398474905,1765714240785,-305.73,0.00017619,2]
[398474906,1765714240795,-171.08099914,0.00017628,2]
[398474907,1765714240804,-9656.10817372,0.00017644,2]
[398474908,1765714240813,-269.0,0.0001767,2]
[398474909,1765714240822,-198.3,0.00017677,2]
[398474910,1765714240832,-7073.0,0.00017684,2]
[398474911,1765714240841,-269.0,0.00017693,2]
[398474912,1765714240851,-269.0,0.00017697,2]
[398474913,1765714240860,-321.4128953,0.00017718,2]
[398474914,1765714240869,-1000.0,0.00017726,2]
[398474915,1765714240879,-158.92668608,0.00017726,2]
[398474916,1765714240888,-263.16412715,0.00017726,2]
[398474917,1765714240898,-150.0,0.00017726,2]
[398474918,1765714240907,-150.0,0.00017726,2]
[398474919,1765714240917,-500.0,0.00017728,2]
[398474920,1765714240926,-500.0,0.00017728,2]
[398474921,1765714240936,-500.0,0.00017728,2]
[398474922,1765714240945,-500.0,0.00017728,2]
[398474923,1765714240955,-500.0,0.00017728,2]
[398474924,1765714240964,-500.0,0.00017728,2]